[Event "7th Sharjah Challengers 2024"]
[Site "Sharjah"]
[Date "2024.05.22"]
[Round "9.11"]
[White "Pang, Tao"]
[Black "Kanter, Eduard"]
[Result "1-0"]
[ECO "D63"]
[WhiteElo "2496"]
[BlackElo "2344"]
[Annotator "TA"]
[PlyCount "102"]
[EventDate "2024.05.13"]
[EventType "swiss"]
[EventCountry "UAE"]
[SourceTitle "playchess.com"]
[Source "ChessBase"]
[SourceQuality "1"]
[TimeControl "5400+30"]

{[%evp 19,102,15,11,12,22,4,56,50,46,50,45,15,18,0,0,12,11,7,7,13,39,40,33,39,90,79,154,164,150,85,83,76,130,134,130,94,133,120,138,62,77,84,100,83,70,0,59,57,64,30,117,0,55,58,45,0,0,0,93,84,93,102,93,100,83,87,94,93,93,91,127,96,228,195,233,222,236,236,217,209,263,263,427,362,29989]} 1. d4 {[%emt 0:00:06]} d5 {[%emt 0:00:00]} 2. c4 {[%emt 0:00:12]} e6 {[%emt 0:00:00]} 3. Nc3 {[%emt 0:00:14]} Nf6 {[%emt 0:00:04]} 4. Bg5 {[%emt 0:00:25]} Be7 {[%emt 0:00:55]} 5. e3 {[%emt 0:00:19]} h6 {[%emt 0:02:39]} 6. Bh4 {[%emt 0:00:23]} O-O {[%emt 0:00:30]} 7. Nf3 {[%emt 0:00:12]} Nbd7 {[%emt 0:00:35]} 8. Rc1 {[%emt 0:00:40]} c5 {[%emt 0:03:57] D63: Queen's Gambit Declined: Classical: 7 Rc1.} 9. dxc5 {[%emt 0:04:45]} dxc4 {[%emt 0:02:17]} 10. Bxc4 {[%emt 0:01:12]} Nxc5 {[%emt 0:00:33]} 11. O-O {[%emt 0:00:20]} a6 {[%emt 0:20:33]} 12. Be2 {[%emt 0:03:52]} Qb6 $146 {[%emt 0:19:48]} (12... b5 $11) ({Predecessor:} 12... b5 13. Ne5 Bb7 14. Bf3 Qxd1 15. Rfxd1 Bxf3 16. gxf3 Rfc8 17. Ne2 g5 18. Bg3 Nd5 {½-½ Mamedyarov,S (2767)-So,W (2767) chess.com Speed blitz 2019 (1.7)}) 13. Ne5 $14 {[%emt 0:05:25]} Rd8 {[%emt 0:07:40]} 14. Qc2 {[%emt 0:01:28]} Bd7 $1 {[%emt 0:06:23]} 15. Bg3 {[%emt 0:16:21]} Rac8 {[%emt 0:04:01]} 16. Nc4 {[%emt 0:08:15]} Qa7 {[%emt 0:02:47]} 17. b4 {[%emt 0:06:43]} b5 $1 {[%emt 0:00:07]} 18. Bd6 {[%emt 0:00:55]} Be8 {[%emt 0:07:34]} 19. Nb6 {[%emt 0:08:16]} Rc6 {[%emt 0:11:23]} 20. Bxc5 {[%emt 0:02:32]} (20. bxc5 $2 Bxd6 21. cxd6 Qxb6 $19) 20... Bxc5 {[%emt 0:00:24]} 21. Nxb5 $1 {[%emt 0:03:13]} (21. bxc5 Rxc5 22. Qb2 Rc7 $17 (22... Qxb6 23. Na4 $16) (22... Qxb6 23. Na4 $18)) 21... axb5 {[%emt 0:01:42]} (21... Qxb6 $6 22. bxc5 Qb8 23. Nd4 $16) (21... Bxb6 $14 22. Nxa7 Rxc2 23. Rxc2 Bxa7) 22. bxc5 $16 {[%emt 0:00:12]} Qa5 {[%emt 0:02:09]} (22... Rc7 $142) 23. Bf3 $1 $16 {[%emt 0:01:41]} Rc7 {[%emt 0:01:01]} 24. Rfd1 {[%emt 0:02:39]} ({White should play} 24. Qb2 $1) 24... Rxd1+ $16 {[%emt 0:00:04]} 25. Rxd1 {[%emt 0:00:32]} b4 {[%emt 0:00:27]} (25... Qxb6 $2 26. cxb6 Rxc2 27. b7 $18) (25... Qa3 $142) 26. Rc1 $16 {[%emt 0:01:48]} Bc6 {[%emt 0:03:19]} 27. Nc4 {[%emt 0:02:49]} Qa8 {[%emt 0:00:26]} (27... Qxc5 28. Nd2 Qxc2 29. Rxc2 $14) 28. Bxc6 {[%emt 0:01:20]} Qxc6 {[%emt 0:00:02]} 29. Na5 {[%emt 0:01:38]} (29. Nb2 $16) 29... Qb5 {[%emt 0:01:00]} 30. Nb3 {[%emt 0:00:11]} Nd5 {[%emt 0:00:03]} 31. Nd4 {[%emt 0:02:25]} Qa5 {[%emt 0:00:30]} 32. Nb3 {[%emt 0:01:28]} (32. Qc4 $14) 32... Qa6 {[%emt 0:00:17]} ({Better is} 32... Qb5 $1 $11) 33. Rd1 $14 {[%emt 0:01:52]} Rc8 {[%emt 0:00:28]} 34. Rd4 {[%emt 0:00:32]} Qa3 {[%emt 0:02:57]} (34... Nc3 $1 $11 35. Rd2 (35. Rxb4 Ne2+ 36. Kh1 Nc3 $11) 35... g6) 35. c6 {[%emt 0:02:52]} (35. h3 $16) 35... g6 {[%emt 0:00:08]} (35... Qa6 $11) 36. Rc4 {[%emt 0:04:51]} Nc3 {[%emt 0:00:31]} 37. c7 {[%emt 0:16:22]} (37. h3 {simplifies} Qa6 38. Rxb4 Qxc6 39. Qb2) 37... Qa6 {[%emt 0:01:07]} 38. Rc5 {[%emt 0:00:00]} Qd6 {[%emt 0:00:17]} (38... Ne2+ $1 $11 39. Kh1 Nc3) 39. a3 $1 $16 {[%emt 0:00:00]} Nd5 {[%emt 0:00:12] [#]} 40. e4 $1 {[%emt 0:00:00]} Nxc7 {[%emt 0:00:50] [#]} 41. Rc6 $1 {[%emt 0:00:00]} (41. axb4 $6 Rd8 42. Kf1 (42. Rxc7 $2 Qd1+ 43. Qxd1 Rxd1#) 42... Na6 $11) 41... Qd7 {[%emt 0:00:14]} 42. axb4 {[%emt 0:00:00]} Rd8 {[%emt 0:00:03]} 43. g3 {[%emt 0:00:00]} (43. Rxc7 $2 {leads to mate.} Qd1+ 44. Qxd1 Rxd1#) 43... Nb5 {[%emt 0:00:06]} 44. Kg2 {[%emt 0:00:00]} h5 {[%emt 0:00:06]} 45. Rc5 {[%emt 0:00:00]} Nd4 {[%emt 0:00:52]} (45... Na3 $16 {was worth a try.} 46. Qc3 Qd3) 46. Nxd4 $18 {[%emt 0:00:00]} Qxd4 {[%emt 0:00:01]} 47. Rc4 {[%emt 0:00:00]} Qd7 {[%emt 0:00:50]} 48. h4 {[%emt 0:00:00]} Qb7 {[%emt 0:00:26]} 49. Qc3 {[%emt 0:00:00]} Re8 {[%emt 0:00:38]} 50. Qe5 {[%emt 0:00:00]} Rb8 $2 {[%emt 0:01:05]} (50... Rc8 51. Rxc8+ Qxc8) 51. b5 $18 {[%emt 0:00:00]} Qd7 $2 {[%emt 0:01:59]} ({And not} 51... Qxb5 52. Rc8+ Rxc8 53. Qxb5 $18) (51... Rd8 $18 52. g4 Qd7 53. gxh5 gxh5) 1-0

[Event "7th Sharjah Challengers 2024"]
[Site "Sharjah"]
[Date "2024.05.22"]
[Round "9.12"]
[White "Kazarian, Anna-Maja"]
[Black "Anwesh, Upadhyaya"]
[Result "0-1"]
[ECO "D35"]
[WhiteElo "2182"]
[BlackElo "2345"]
[Annotator "RC"]
[PlyCount "60"]
[EventDate "2024.05.13"]
[EventType "swiss"]
[EventCountry "UAE"]
[SourceTitle "playchess.com"]
[Source "ChessBase"]
[SourceQuality "1"]
[TimeControl "5400+30"]

1. d4 {[%emt 0:00:02]} Nf6 {[%emt 0:03:33]} 2. Nf3 {[%emt 0:00:15]} d5 {[%emt 0:00:25]} 3. c4 {[%emt 0:00:08]} e6 {[%emt 0:01:17]} 4. Nc3 {[%emt 0:00:44]} c6 {[%emt 0:00:08]} 5. cxd5 {[%emt 0:02:46]} exd5 {[%emt 0:00:09]} 6. Bg5 {[%emt 0:00:08]} Be7 {[%emt 0:00:13]} 7. e3 {[%emt 0:00:11]} Bf5 {[%emt 0:01:24]} 8. Bd3 {[%emt 0:00:38]} Bxd3 {[%emt 0:00:07]} 9. Qxd3 {[%emt 0:00:04]} a5 {[%emt 0:01:48]} 10. O-O {[%emt 0:01:07]} O-O {[%emt 0:00:19]} 11. Ne5 {[%emt 0:03:43]} Na6 {[%emt 0:07:53]} 12. f4 {[%emt 0:07:12]} Nc7 {[%emt 0:07:42]} 13. Rf3 {[%emt 0:03:53]} Ne4 {[%emt 0:11:38]} 14. Bxe7 {[%emt 0:19:27]} Qxe7 {[%emt 0:00:09]} 15. Rh3 {[%emt 0:00:09]} f6 {[%emt 0:06:22]} 16. Nf3 {[%emt 0:01:28]} Ne8 {[%emt 0:09:44]} 17. g4 {[%emt 0:06:02]} N8d6 {[%emt 0:01:38]} 18. Ne2 {[%emt 0:02:44]} Rae8 {[%emt 0:04:19]} 19. Kg2 {[%emt 0:06:35]} Qd7 {[%emt 0:04:56]} 20. f5 {[%emt 0:07:35]} g6 {[%emt 0:00:13]} 21. Nf4 {[%emt 0:11:48]} gxf5 {[%emt 0:00:40]} 22. gxf5 {[%emt 0:00:16]} Nxf5 {[%emt 0:06:57]} 23. Rg1 {[%emt 0:02:01]} Rf7 {[%emt 0:02:16]} 24. Kf1+ {[%emt 0:10:17]} Rg7 {[%emt 0:01:51]} 25. Rxg7+ {[%emt 0:02:03]} Qxg7 {[%emt 0:00:29]} 26. Ke2 {[%emt 0:00:19]} Qg4 {[%emt 0:02:38]} 27. Rh5 {[%emt 0:05:33]} Ng5 {[%emt 0:03:37]} 28. Rxg5+ {[%emt 0:00:40]} fxg5 {[%emt 0:00:05]} 29. Nh5 {[%emt 0:00:29]} Qg2+ {[%emt 0:00:40]} 30. Ke1 {[%emt 0:00:09]} Rxe3+ {[%emt 0:00:40]} 0-1